bitfinex-derivatives/quotes_SOLF0:USTF0_20260215
["timestamp","ask_amount","ask_price","bid_price","bid_amount"]
[1771132660466,6.03746915,89.33,89.27,3.63512385]
[1771132660664,6.03746915,89.33,89.271,10.0851]
[1771132661066,6.03746915,89.33,89.27,3.63512385]
[1771132662064,3.8360463,89.329,89.251,3.77839761]
[1771132662258,3.8360463,89.309,89.251,3.77839761]
[1771132662458,3.8360463,89.329,89.251,3.77839761]
[1771132662965,3.8360463,89.319,89.251,3.77839761]
[1771132663359,6.02333309,89.3,89.233,3.58782035]
[1771132664362,3.65246837,89.339,89.249,3.58782035]
[1771132665472,3.65246837,89.333,89.249,3.58782035]
[1771132665865,10.0789,89.327,89.251,3.58782035]
[1771132666265,3.65246837,89.319,89.251,3.58782035]
[1771132666465,3.65246837,89.314,89.251,3.58782035]
[1771132667360,3.65246837,89.312,89.251,3.58782035]
[1771132667564,3.65246837,89.312,89.232,3.58782035]
[1771132668065,6.02333309,89.36,89.26,6.02333309]
[1771132668367,3.65246837,89.359,89.261,3.58782035]
[1771132668970,10.0767,89.347,89.285,10.0835]
[1771132669371,3.65246837,89.346,89.285,10.0835]
[1771132669573,3.65246837,89.339,89.28,3.58782035]
[1771132670773,3.65246837,89.337,89.28,3.58782035]
[1771132671869,10.0779,89.335,89.28,3.58782035]
[1771132672766,3.65246837,89.337,89.283,3.58782035]
[1771132673775,10.0765,89.348,89.283,3.58782035]
[1771132674677,3.65246837,89.371,89.295,3.58782035]
[1771132675880,3.65246837,89.369,89.304,10.0813]
[1771132676976,3.65246837,89.367,89.304,10.0813]
[1771132677772,3.65246837,89.349,89.281,11.63]
[1771132678379,3.65246837,89.349,89.282,3.58782035]
[1771132678775,10.0768,89.345,89.283,10.0837]
[1771132680174,13.72926837,89.345,89.283,10.0837]
[1771132680367,6.02333309,89.33,89.281,11.63]
[1771132680568,3.65246837,89.329,89.281,11.63]
[1771132680775,3.65246837,89.328,89.281,11.63]
[1771132681979,10.0799,89.318,89.281,7.10389989]
[1771132682274,3.65246837,89.317,89.281,7.10389989]
[1771132682477,6.02333309,89.31,89.228,3.58782035]
[1771132682673,6.02333309,89.31,89.23,3.58782035]
[1771132682674,10.0827,89.293,89.23,3.58782035]
[1771132682979,3.65246837,89.308,89.23,3.58782035]
[1771132683474,3.65246837,89.308,89.253,3.58782035]
[1771132684276,10.0803,89.315,89.253,3.58782035]
[1771132684480,10.0814,89.304,89.253,3.58782035]
[1771132684775,3.65246837,89.37,89.281,3.58782035]
[1771132685477,3.65246837,89.359,89.281,3.58782035]
[1771132685876,3.65246837,89.357,89.281,3.58782035]
[1771132686481,3.65246837,89.342,89.281,3.58782035]
[1771132686669,93.01246837,89.341,89.281,3.58782035]
[1771132686873,3.65246837,89.34,89.282,10.56]
[1771132687271,3.65246837,89.358,89.285,3.58782035]
[1771132687483,89.36,89.357,89.285,3.58782035]
[1771132687776,10.0757,89.355,89.291,10.0828]
[1771132687976,10.0757,89.355,89.292,3.58782035]
[1771132688679,13.72816837,89.355,89.292,3.58782035]
[1771132688880,10.0767,89.346,89.292,3.58782035]
[1771132693379,13.77362963,89.341,89.283,3.78021325]
[1771132693977,3.69632963,89.337,89.284,10.0836]
[1771132694378,3.69632963,89.329,89.282,10.56]
[1771132694578,3.69632963,89.317,89.282,10.56]
[1771132694782,131.2,89.318,89.283,3.78021325]
[1771132695080,154.18,89.317,89.283,3.78021325]
[1771132695481,159.28,89.321,89.283,3.78021325]
[1771132695677,159.28,89.321,89.282,10.56]
[1771132695883,3.69632963,89.32,89.282,10.56]
[1771132696981,3.69632963,89.319,89.282,10.56]
[1771132699286,13.77622963,89.318,89.282,10.56]
[1771132699986,177.28,89.317,89.282,10.56]
[1771132700175,11.2,89.374,89.282,10.56]
[1771132700176,3.69632963,89.336,89.283,3.78021325]
[1771132700380,93.05632963,89.336,89.283,3.78021325]
[1771132700782,93.05632963,89.336,89.285,10.0835]
[1771132701088,3.69632963,89.334,89.285,10.0835]
[1771132701281,6.02333309,89.42,89.311,3.78021325]
[1771132701475,3.69632963,89.418,89.311,3.78021325]
[1771132701886,3.69632963,89.391,89.327,3.78021325]
[1771132702376,3.69632963,89.389,89.327,3.78021325]
[1771132702775,3.69632963,89.388,89.329,10.0786]
[1771132704587,106.26,89.387,89.333,10.0781]
[1771132706186,16.09393309,89.4,89.34,3.78021325]
[1771132706383,93.05632963,89.399,89.34,3.78021325]
[1771132706587,3.69632963,89.398,89.34,3.78021325]
[1771132709688,3.69632963,89.396,89.342,10.077]
[1771132711585,3.69632963,89.394,89.342,10.077]
[1771132713490,3.69632963,89.39,89.34,3.78021325]
[1771132713688,3.69632963,89.39,89.324,3.78021325]
[1771132713885,3.69632963,89.379,89.324,3.78021325]
[1771132714080,3.69632963,89.376,89.324,3.78021325]
[1771132715087,3.69632963,89.37,89.307,3.78021325]
[1771132715494,3.69632963,89.359,89.307,3.78021325]
[1771132715697,3.69632963,89.359,89.308,10.0809]
[1771132716386,158.66,89.358,89.308,10.0809]
[1771132717797,3.69632963,89.355,89.298,10.082]
[1771132717998,3.69632963,89.353,89.298,10.082]
[1771132718591,3.69632963,89.353,89.291,3.78021325]
[1771132718592,3.69632963,89.349,89.291,3.78021325]
[1771132719891,10.0767,89.347,89.291,3.78021325]
[1771132720292,182.74,89.346,89.291,3.78021325]
[1771132721996,198.6,89.345,89.291,3.78021325]
[1771132725100,202.30033011,89.345,89.291,3.78021325]
[1771132725302,3.70033011,89.344,89.291,3.78021325]
[1771132728696,3.70033011,89.361,89.297,3.6994358]
[1771132729002,89.34,89.36,89.297,3.6994358]
[1771132730306,3.70033011,89.359,89.283,3.6994358]
[1771132731103,3.70033011,89.359,89.295,3.6994358]
[1771132731704,3.70033011,89.359,89.28,6.01839131]
[1771132731705,3.70033011,89.359,89.309,3.6994358]
[1771132731900,89.34,89.358,89.309,3.6994358]
[1771132732700,89.34,89.358,89.313,3.6994358]
[1771132733802,120.76,89.357,89.313,3.6994358]
[1771132735611,150.96,89.356,89.313,3.6994358]
[1771132736703,180.8,89.355,89.313,3.6994358]
[1771132736913,3.70033011,89.354,89.303,10.0814]
[1771132737103,203.1,89.353,89.303,10.0814]
[1771132737508,3.70033011,89.354,89.304,3.6994358]
[1771132737709,89.34,89.353,89.304,3.6994358]
[1771132738709,119.8,89.352,89.317,10.0799]
[1771132740100,3.70033011,89.374,89.328,10.0786]
[1771132740300,3.70033011,89.372,89.318,3.6994358]
[1771132740812,3.70033011,89.372,89.327,10.0788]
[1771132741011,3.70033011,89.372,89.327,3.6994358]
[1771132741214,3.70033011,89.399,89.327,3.6994358]
[1771132741411,3.70033011,89.419,89.364,10.0746]
[1771132741612,3.70033011,89.417,89.364,10.0746]
[1771132741910,3.70033011,89.417,89.365,10.0745]
[1771132742109,3.70033011,89.415,89.365,10.0745]
[1771132742503,3.70033011,89.412,89.354,10.0757]
[1771132742815,3.70033011,89.412,89.336,3.6994358]
[1771132743205,3.70033011,89.399,89.336,3.6994358]
[1771132743709,3.70033011,89.399,89.352,10.0759]
[1771132746012,3.70033011,89.399,89.361,10.075]
[1771132746606,89.32,89.398,89.361,10.075]
[1771132746809,3.70033011,89.397,89.353,7.48]
[1771132747410,3.70033011,89.397,89.354,10.0758]
[1771132750014,126.22,89.396,89.354,10.0758]
[1771132750317,168.0,89.395,89.354,10.0758]
[1771132750514,6.01839131,89.43,89.36,3.6994358]
[1771132750823,93.02033011,89.429,89.36,3.6994358]
[1771132751820,93.02033011,89.429,89.38,10.0728]
[1771132752214,3.70033011,89.428,89.38,10.0728]
[1771132752414,120.36033011,89.428,89.38,10.0728]
[1771132752710,3.70033011,89.427,89.374,3.6994358]
[1771132752915,3.70033011,89.427,89.369,10.074]
[1771132753313,3.70033011,89.427,89.358,3.6994358]
[1771132753714,3.55143148,89.424,89.367,10.0742]
[1771132754315,3.55143148,89.424,89.371,10.0738]
[1771132754522,89.3,89.423,89.371,10.0738]
[1771132754922,3.55143148,89.422,89.371,10.0738]
[1771132757224,118.9,89.421,89.371,10.0738]
[1771132757623,3.55143148,89.42,89.368,3.68989885]
[1771132758026,118.9,89.421,89.368,3.68989885]
[1771132758816,163.8,89.42,89.379,3.68989885]
[1771132759018,166.04231801,89.42,89.379,3.68989885]
[1771132760725,166.04231801,89.42,89.38,10.0728]
[1771132761731,2.24231801,89.41,89.369,10.074]
[1771132761931,2.24231801,89.4,89.353,7.48]
[1771132762129,201.76,89.399,89.353,7.48]
[1771132762432,2.24231801,89.39,89.353,7.48]
[1771132763733,205.42,89.389,89.353,7.48]
[1771132764634,2.24231801,89.38,89.353,7.48]
[1771132764834,205.72,89.379,89.353,7.48]
[1771132765230,2.24231801,89.38,89.353,7.48]
[1771132765435,205.84,89.379,89.353,7.48]
[1771132765931,205.94,89.378,89.353,7.48]
[1771132766325,2.24231801,89.38,89.353,7.48]
[1771132766528,89.28,89.379,89.353,7.48]
[1771132767832,100.6,89.378,89.353,7.48]
[1771132768541,2.24231801,89.36,89.317,3.68989885]
[1771132768929,89.28,89.359,89.317,3.68989885]
[1771132769132,2.24231801,89.35,89.305,10.0813]
[1771132769333,94.12,89.349,89.305,10.0813]
[1771132773733,94.12,89.349,89.302,3.68989885]
[1771132773938,2.24231801,89.34,89.302,3.68989885]
[1771132776540,2.24231801,89.34,89.299,10.61]
[1771132776940,2.24231801,89.33,89.299,10.61]
[1771132781343,136.58231801,89.33,89.299,10.61]
[1771132781545,2.24231801,89.32,89.299,10.61]
[1771132783140,163.14,89.324,89.272,3.63246145]
[1771132783141,2.24231801,89.31,89.272,3.63246145]
[1771132783337,2.24231801,89.3,89.257,6.53567562]
[1771132783646,2.24231801,89.3,89.263,435.28045999]
[1771132783837,2.24231801,89.3,89.264,6.62532104]
[1771132785645,2.24231801,89.31,89.264,6.62532104]
[1771132785842,2.24231801,89.31,89.265,6.67015738]
[1771132786444,2.24231801,89.31,89.269,6.67015759]
[1771132786841,104.66,89.317,89.269,6.67015759]
[1771132787948,104.66,89.317,89.28,6.65843335]
[1771132788950,2.24754788,89.31,89.28,6.65843335]
[1771132789152,2.24754788,89.3,89.264,6.65843357]
[1771132789747,104.66,89.317,89.266,6.76500573]
[1771132790851,104.66,89.317,89.269,6.7650059]
[1771132791346,2.24754788,89.32,89.274,6.76803695]
[1771132791553,2.24754788,89.31,89.274,6.76803695]
[1771132792149,2.24754788,89.29,89.263,428.65513895]
[1771132792547,2.24754788,89.3,89.263,428.65513895]
[1771132793355,2.24754788,89.3,89.264,6.76632537]
[1771132793951,89.36,89.303,89.264,6.76632537]
[1771132794150,97.0,89.307,89.264,6.76632537]
[1771132794954,104.56,89.308,89.265,6.76632554]
[1771132795754,104.56,89.308,89.272,10.0849]
[1771132796551,2.24754788,89.32,89.283,10.0837]
[1771132796756,112.02,89.319,89.284,6.76313379]
[1771132797746,2.24754788,89.31,89.284,6.76313379]
[1771132798354,2.24754788,89.3,89.263,428.65513895]
[1771132799559,2.24754788,89.3,89.264,10.0859]
[1771132800148,10.0781,89.334,89.274,10.0847]
[1771132800354,2.24754788,89.31,89.274,10.0847]
[1771132800559,2.24754788,89.3,89.264,4.65967644]
[1771132800763,2.24754788,89.29,89.259,2.28]
[1771132802354,20.1512,89.356,89.234,4.66486759]
[1771132802355,90.7,89.289,89.234,4.66486759]
[1771132802564,89.8,89.291,89.234,4.66486759]
[1771132802864,89.8,89.291,89.257,4.6648677]
[1771132803051,2.24754788,89.31,89.257,4.6648677]
[1771132803256,2.24754788,89.32,89.269,4.67352539]
[1771132803455,2.24754788,89.33,89.271,4.67352539]
[1771132803651,2.24754788,89.34,89.28,2.24754788]
[1771132803850,2.24754788,89.34,89.281,4.67352539]
[1771132803851,89.36,89.339,89.281,4.67352539]
[1771132804151,2.24754788,89.34,89.294,10.0825]
[1771132804350,90.7,89.339,89.294,10.0825]
[1771132805257,92.02,89.346,89.3,4.6735255]
[1771132805451,2.24754788,89.35,89.3,4.6735255]
[1771132806260,2.24754788,89.35,89.301,10.0817]
[1771132806460,2.24754788,89.35,89.302,4.73627169]
[1771132806659,20.73313422,89.453,89.247,89.36]
[1771132806660,2.24754788,89.37,89.311,4.73627169]
[1771132806865,89.36,89.369,89.311,4.73627169]
[1771132807662,92.94754788,89.37,89.311,4.73627169]
[1771132807863,92.94754788,89.37,89.317,4.75203858]
[1771132808363,98.28,89.369,89.317,4.75203858]
[1771132809558,98.28,89.369,89.31,2.24754788]
[1771132809559,98.28,89.369,89.32,4.75125601]
[1771132809862,2.24754788,89.36,89.32,4.75125601]
[1771132811459,105.78,89.367,89.323,10.0792]
[1771132811960,2.24754788,89.37,89.323,10.0792]
[1771132812164,2.24754788,89.37,89.323,14.91608428]
[1771132812563,2.24754788,89.37,89.245,27.27070091]
[1771132812564,2.24754788,89.38,89.326,4.83688434]
[1771132813167,2.24754788,89.36,89.325,10.079]
[1771132813562,2.24754788,89.38,89.325,14.90653299]
[1771132813759,208.88,89.379,89.33,10.0785]
[1771132813966,2.24754788,89.39,89.331,4.82753299]
[1771132814767,2.24754788,89.39,89.335,4.82753305]
[1771132814958,2.24754788,89.39,89.278,156.8682]
[1771132814959,2.24754788,89.34,89.287,4.82753305]
[1771132815161,2.24754788,89.33,89.287,4.82753305]
[1771132815361,2.24754788,89.33,89.296,10.0822]
[1771132815658,10.0755,89.357,89.297,4.83165567]
[1771132815963,2.24754788,89.33,89.297,4.83165567]
[1771132816560,4.788e-05,89.33,89.297,4.83165567]
[1771132816765,4.788e-05,89.33,89.298,10.0821]
[1771132816966,89.34,89.341,89.298,10.0821]
[1771132819169,89.34,89.341,89.304,10.0813]
[1771132819968,89.34,89.341,89.299,4.91966957]
[1771132820168,6.01898376,89.35,89.299,4.91966957]
[1771132820476,108.16,89.349,89.299,4.91966957]
[1771132820968,118.2364,89.349,89.284,4.92132607]
[1771132821174,6.01898376,89.33,89.251,4.92132607]
[1771132821368,123.02,89.329,89.251,4.92132607]
[1771132821969,6.01898376,89.33,89.251,4.92132607]
[1771132822267,104.38,89.329,89.28,10.0841]
[1771132823566,104.38,89.329,89.268,10.0854]
[1771132823767,119.3788,89.328,89.261,4.90174706]
[1771132823966,6.01898376,89.31,89.215,4.90174706]
[1771132824174,6.01898376,89.31,89.242,10.0883]
[1771132824470,94.04,89.309,89.242,14.99004706]
[1771132825873,104.1209,89.309,89.242,14.99004706]
[1771132826575,112.82,89.308,89.249,4.89122256]
[1771132827575,10.0814,89.305,89.239,10.0887]
[1771132827773,6.01898376,89.29,89.234,4.88105201]
[1771132828168,89.36,89.289,89.234,4.88105201]
[1771132828474,89.36,89.289,89.226,10.0902]
[1771132828676,94.42,89.288,89.226,10.0902]
[1771132829073,109.5234,89.287,89.215,10.0914]
[1771132829278,100.22,89.286,89.215,10.0914]
[1771132829888,6.01898376,89.27,89.215,10.0914]
[1771132830779,89.38,89.269,89.215,10.0914]
[1771132836090,89.38,89.269,89.216,4.87076309]
[1771132837084,6.01898376,89.27,89.22,4.87076313]
[1771132837286,104.42,89.269,89.22,4.87076313]
[1771132837986,115.58,89.272,89.22,4.87076313]
[1771132838792,115.58,89.272,89.226,10.0901]
[1771132838996,2.25039933,89.27,89.226,10.0901]
[1771132839185,2.25039933,89.28,89.227,4.87522593]
[1771132839390,2.25039933,89.28,89.231,4.88752231]
[1771132839592,2.25039933,89.28,89.243,10.0882]
[1771132839793,2.25039933,89.28,89.243,14.97572231]
[1771132840193,2.25039933,89.28,89.244,4.88752231]
[1771132840594,2.25039933,89.28,89.243,10.0882]
[1771132841288,2.25039933,89.27,89.232,10.0895]
[1771132846092,26.0,89.335,89.214,239.30121388]
[1771132846093,2.25039933,89.26,89.221,10.0908]
[1771132846397,2.25039933,89.26,89.216,4.91070649]
[1771132846592,2.25039933,89.27,89.231,4.91070651]
[1771132846793,89.42,89.287,89.231,4.91070651]
[1771132846993,2.25039933,89.29,89.241,4.91070651]
[1771132847696,2.25039933,89.29,89.244,10.0881]
[1771132847999,2.25039933,89.29,89.245,4.90953597]
[1771132848793,2.25039933,89.28,89.245,4.90953597]
[1771132848995,2.24968736,89.28,89.233,10.0894]
[1771132849202,2.24968736,89.27,89.233,10.0894]
[1771132851102,91.66968736,89.28,89.233,10.0894]
[1771132852202,91.66968736,89.28,89.237,14.89501267]
[1771132852403,91.66968736,89.28,89.238,4.80611271]
[1771132853006,2.24968736,89.28,89.238,4.80611271]
[1771132856698,2.24968736,89.27,89.224,14.88946674]
[1771132857099,2.24968736,89.27,89.225,4.79906674]
[1771132859507,2.24968736,89.26,89.225,4.79906674]
[1771132861404,2.24968736,89.26,89.227,10.0901]
[1771132861806,2.24968736,89.26,89.228,4.74388713]
[1771132863009,96.96,89.29,89.241,4.74388718]
[1771132863201,2.24968736,89.3,89.241,4.74388718]
[1771132863406,89.42,89.299,89.241,4.74388718]
[1771132863804,2.24968736,89.28,89.214,239.30121388]
[1771132864010,2.24968736,89.26,89.215,4.744076]
[1771132864406,2.24968736,89.25,89.214,239.30121388]
[1771132865115,2.24968736,89.24,89.213,10.0916]
[1771132865313,2.24968736,89.23,89.183,4.74407604]
[1771132865509,2.24968736,89.23,89.193,10.0939]
[1771132865701,91.66968736,89.23,89.194,4.70360227]
[1771132865906,2.24968736,89.23,89.194,4.70360227]
[1771132867510,2.24968736,89.23,89.193,10.0939]
[1771132868414,2.24968736,89.23,89.17,2.24968736]
[1771132868415,10.0893,89.234,89.165,4.70850294]
[1771132868714,2.24968736,89.22,89.165,4.70850294]
[1771132869413,2.24968736,89.22,89.17,2.24968736]
[1771132869617,104.42,89.229,89.171,4.7097053]
[1771132869817,115.6,89.229,89.182,4.7097053]
[1771132870818,115.6,89.229,89.187,10.0946]
[1771132871218,2.24968736,89.22,89.166,4.70970534]
[1771132871418,2.24968736,89.21,89.166,4.70970534]
[1771132872017,2.24968736,89.21,89.15,2.24968736]
[1771132872018,2.24968736,89.21,89.167,4.71249203]
[1771132872215,2.24968736,89.22,89.171,4.71249203]
[1771132872412,2.24968736,89.23,89.181,4.71249208]
[1771132872814,2.24968736,89.22,89.181,4.71249208]
[1771132873019,2.24968736,89.21,89.166,4.71249208]
[1771132874321,2.24968736,89.19,89.152,10.0986]
[1771132874522,2.24968736,89.2,89.153,4.71285309]
[1771132874715,2.24968736,89.21,89.153,4.71285309]
[1771132875024,2.24968736,89.21,89.164,4.71285309]
[1771132875823,2.24968736,89.23,89.181,4.72344515]
[1771132876018,89.44,89.234,89.181,4.72344515]
[1771132876315,2.24968736,89.23,89.181,4.72344515]
[1771132876514,2.24968736,89.22,89.181,4.72344515]
[1771132877127,2.24968736,89.23,89.181,4.72344515]
[1771132877819,89.46,89.229,89.182,10.0951]
[1771132878216,97.08,89.228,89.182,10.0951]
[1771132878626,97.08,89.228,89.131,20.2019]
[1771132878627,2.24968736,89.21,89.165,4.71651998]
[1771132878820,104.62,89.219,89.165,4.71651998]
[1771132879016,2.24968736,89.21,89.165,4.71651998]
[1771132879223,2.24968736,89.21,89.166,10.097]
[1771132879426,2.24968736,89.2,89.166,10.097]
[1771132879627,2.24968736,89.2,89.165,4.71651998]
[1771132880723,26.0,89.279,89.121,441.34969803]
[1771132880724,90.8,89.206,89.167,4.74987746]
[1771132881528,2.24968736,89.21,89.167,4.74987746]
[1771132881730,2.24968736,89.21,89.168,10.0968]
[1771132882429,2.24968736,89.2,89.159,10.0978]
[1771132884428,2.24968736,89.2,89.152,4.74470736]
[1771132885027,2.24968736,89.2,89.155,4.74362169]
[1771132886741,2.24968736,89.2,89.161,10.0975]
[1771132890542,2.24968736,89.2,89.121,441.34969803]
[1771132890543,2.24968736,89.22,89.171,4.74410293]
[1771132890743,89.48,89.219,89.171,4.74410293]
[1771132891339,89.48,89.219,89.124,20.45964206]
[1771132891340,2.24968736,89.21,89.163,10.0973]
[1771132891643,2.24968736,89.2,89.163,10.0973]
[1771132893540,2.24968736,89.21,89.163,10.0973]
[1771132893945,2.24968736,89.22,89.171,4.74222563]
[1771132894142,89.48,89.22,89.151,4.74222563]
[1771132894336,2.24968736,89.21,89.151,4.74222563]
[1771132895834,2.24968736,89.21,89.172,10.0962]
[1771132897547,89.48,89.215,89.169,4.72283499]
[1771132897548,2.24968736,89.2,89.169,4.72283499]
[1771132898846,2.24968736,89.2,89.17,10.0965]
[1771132900541,97.04,89.209,89.17,10.0965]
[1771132902452,121.92,89.231,89.182,4.7251502]
[1771132902746,2.24968736,89.24,89.182,4.7251502]
[1771132903747,2.24968736,89.24,89.201,10.093]
[1771132904152,2.24968736,89.24,89.202,4.72155398]
[1771132905050,213.32,89.243,89.202,4.72155398]
[1771132905750,213.32,89.243,89.204,10.0927]
[1771132906547,2.24968736,89.24,89.204,10.0927]
[1771132906951,2.24968736,89.26,89.216,4.70499672]
[1771132907251,213.92,89.259,89.216,4.70499672]
[1771132909055,2.25096023,89.26,89.216,4.70499672]
[1771132909254,214.46,89.259,89.22,10.0909]
[1771132912661,2.25096023,89.25,89.22,10.0909]
[1771132914757,214.46,89.259,89.22,10.0909]
[1771132918158,2.25096023,89.25,89.198,4.7187946]
[1771132918362,89.44,89.249,89.211,10.0919]
[1771132920064,2.25096023,89.24,89.211,10.0919]
[1771132920866,2.25096023,89.22,89.171,4.65550454]
[1771132921061,89.44,89.219,89.171,4.65550454]
[1771132921267,2.25096023,89.21,89.171,4.65550454]
[1771132921658,2.25096023,89.2,89.171,4.65550454]
[1771132923867,2.25096023,89.21,89.172,4.62081934]
[1771132924066,98.3,89.215,89.172,4.62081934]
[1771132924272,2.25096023,89.23,89.172,4.62081934]
[1771132924461,105.74,89.224,89.172,4.62081934]
[1771132924968,2.25096023,89.22,89.172,4.62081934]
[1771132925770,2.25096023,89.22,89.191,10.0941]
[1771132926673,2.25096023,89.22,89.184,4.60895632]
[1771132927777,2.25096023,89.22,89.187,10.0946]
[1771132928367,2.25096023,89.22,89.17,4.61657463]
[1771132928368,2.25096023,89.21,89.17,4.61657463]
[1771132928671,6.023e-05,89.2,89.177,10.0958]
[1771132928966,6.023e-05,89.2,89.17,4.61657463]
[1771132929370,2.25096023,89.21,89.172,4.63049932]
[1771132929573,6.023e-05,89.21,89.172,4.63049932]
[1771132929771,2.25096023,89.22,89.172,4.63049932]
[1771132930373,2.25096023,89.21,89.172,4.63049932]
[1771132930874,6.023e-05,89.21,89.184,10.0949]
[1771132931271,97.0,89.227,89.173,10.0961]
[1771132931477,2.25096023,89.21,89.173,10.0961]
[1771132931872,2.25096023,89.19,89.144,4.62393691]
[1771132932069,2.25096023,89.18,89.144,4.62393691]
[1771132932466,2.25096023,89.17,89.144,4.62393691]
[1771132932670,2.25096023,89.18,89.144,4.62393691]
[1771132933171,2.25096023,89.18,89.144,14.72333691]
[1771132935278,2.25096023,89.18,89.134,10.1006]
[1771132935579,89.46,89.179,89.134,10.1006]
[1771132935773,2.25096023,89.17,89.134,10.1006]
[1771132937572,2.25096023,89.18,89.137,4.58690651]
[1771132938880,2.25096023,89.18,89.138,10.1001]
[1771132941376,2.25096023,89.18,89.139,4.55893648]
[1771132942974,2.25096023,89.2,89.145,4.55660151]
[1771132943176,144.2,89.199,89.145,4.55660151]
[1771132944075,2.25096023,89.19,89.156,4.5437274]
[1771132944381,2.25096023,89.18,89.131,4.5437274]
[1771132944783,2.25096023,89.18,89.143,10.0996]
[1771132944979,2.25096023,89.18,89.131,4.5437274]
[1771132945984,2.25096023,89.18,89.134,4.49928915]
[1771132946383,2.25096023,89.17,89.134,4.49928915]
[1771132948385,2.25096023,89.17,89.135,10.1005]
[1771132949585,26.0,89.24,89.142,4.50143425]
[1771132949889,2.25096023,89.2,89.142,4.50143425]
[1771132950282,2.25096023,89.19,89.142,4.50143425]
[1771132950785,2.25096023,89.19,89.149,10.0989]
[1771132953491,2.25096023,89.19,89.149,14.67125509]
[1771132955594,2.25096023,89.19,89.15,4.58107388]
[1771132955794,2.25096023,89.19,89.152,10.0986]
[1771132957895,2.25096023,89.19,89.15,4.58107388]
[1771132958096,2.25096023,89.18,89.15,4.58107388]
[1771132958396,2.25096023,89.19,89.15,4.58107388]
[1771132961998,2.25096023,89.19,89.152,4.75428214]
[1771132965701,144.76,89.199,89.154,4.7619028]
[1771132965902,2.25096023,89.2,89.154,4.7619028]
[1771132970904,222.85384727,89.2,89.154,4.7619028]
[1771132971307,220.68,89.2,89.159,4.72431006]
[1771132971601,12.34594727,89.21,89.159,4.72431006]
[1771132971910,12.34594727,89.21,89.087,34.26030312]
[1771132971911,91.73384727,89.22,89.175,4.72410263]
[1771132976521,2.25384727,89.22,89.175,4.72410263]
[1771132976719,2.25384727,89.22,89.178,4.75629867]
[1771132977611,2.25384727,89.22,89.18,4.75558484]
[1771132978117,26.0,89.255,89.18,4.75558484]
[1771132978118,2.25384727,89.23,89.18,4.75558484]
[1771132978313,2.25384727,89.24,89.182,4.75558484]
[1771132978519,124.3,89.239,89.182,4.75558484]
[1771132978719,2.25384727,89.23,89.182,4.75558484]
[1771132979717,148.54,89.239,89.163,20.45964206]
[1771132979718,10.0917,89.213,89.166,10.0969]
[1771132979912,2.25384727,89.22,89.17,2.25384727]
[1771132980112,2.25384727,89.22,89.171,4.76512378]
[1771132980822,2.25384727,89.2,89.16,4.76512379]
[1771132981622,2.25384727,89.19,89.155,10.0981]
[1771132983419,2.25384727,89.19,89.147,4.78078566]
[1771132984122,2.25384727,89.18,89.147,4.78078566]
[1771132984522,2.25384727,89.18,89.135,14.90342056]
[1771132984723,2.25384727,89.18,89.136,4.80302056]
[1771132985621,2.25384727,89.17,89.136,4.80302056]
[1771132987826,2.25384727,89.17,89.124,14.8989809]
[1771132988225,2.25384727,89.16,89.124,14.8989809]
[1771132988622,2.25384727,89.17,89.124,14.8989809]
[1771132989020,2.25384727,89.17,89.125,4.79728091]
[1771132989225,2.25384727,89.16,89.113,14.90028091]
[1771132989419,2.25384727,89.14,89.1,4.79728091]
[1771132989919,2.25384727,89.13,89.09,4.8076464]
[1771132990317,2.25384727,89.13,89.084,238.01308889]
[1771132990318,2.25384727,89.12,89.084,238.01308889]
[1771132990522,2.25384727,89.11,89.062,4.80764641]
[1771132990726,2.25384727,89.13,89.071,4.80764641]
[1771132990914,91.73384727,89.13,89.078,4.80764641]
[1771132991119,91.73384727,89.13,89.081,4.80764641]
[1771132991715,91.73384727,89.13,89.083,4.81854347]
[1771132992317,2.25384727,89.12,89.083,4.81854347]
[1771132992619,2.25384727,89.12,89.071,10.1077]
[1771132992822,2.25384727,89.12,89.072,4.81854348]
[1771132993826,2.25384727,89.12,89.075,4.78632528]
[1771132994519,2.25384727,89.13,89.081,4.78632529]
[1771132994717,123.16,89.133,89.081,4.78632529]
[1771132994918,2.25384727,89.14,89.081,4.78632529]
[1771132995123,89.48,89.145,89.095,4.78632529]
[1771132996528,2.25384727,89.14,89.095,4.78632529]
[1771132996726,89.48,89.145,89.095,4.78632529]
[1771132997427,2.25384727,89.15,89.095,4.78632529]
[1771132997928,2.25384727,89.14,89.095,4.78632529]